bitfinex-derivatives/quotes_ETHF0:USTF0_20250330
["timestamp","ask_amount","ask_price","bid_price","bid_amount"]
[1743335717233,3.2078,1833.7,1833.5,42.1744]
[1743335717434,3.2078,1833.7,1833.6,2.1647]
[1743335717930,3.2078,1833.7,1833.6,42.9647]
[1743335718132,1.4323,1833.8,1833.6,42.9647]
[1743335718326,3.2078,1834.1,1833.7,1.4825]
[1743335718532,8.1721,1834.1,1833.7,2.1953]
[1743335718831,1.367,1834.0,1833.7,2.1953]
[1743335719030,1.367,1834.0,1833.8,1.4551]
[1743335723238,2.1287,1834.2,1833.8,1.4551]
[1743335723439,2.11388354,1834.2,1833.9,40.8]
[1743335723639,1.3781,1834.1,1834.0,1.4785]
[1743335723937,1.3781,1834.1,1834.0,2.1936]
[1743335724440,1.3781,1834.1,1834.0,42.9936]
[1743335728841,3.21599426,1834.3,1834.0,42.9936]
[1743335729041,1.3888,1834.2,1834.1,2.157]
[1743335729842,1.3888,1834.2,1834.1,42.957]
[1743335732442,1.3888,1834.2,1834.1,40.8]
[1743335733145,1.3888,1834.2,1833.7,2.1617]
[1743335733441,3.2078,1834.0,1833.7,2.14688354]
[1743335733642,3.2078,1833.8,1833.4,0.00819426]
[1743335733841,3.2078,1833.6,1833.4,0.00819426]
[1743335734036,2.1249,1833.5,1833.4,0.00819426]
[1743335734640,2.1249,1833.5,1833.4,40.80819426]
[1743335745351,1.4394,1833.5,1833.4,40.80819426]
[1743335745546,1.4394,1833.5,1833.4,41.50549426]
[1743335746254,3.2078,1833.6,1833.4,41.50549426]
[1743335746553,3.2078,1833.6,1833.5,1.3974]
[1743335746753,3.2078,1833.6,1833.5,2.1011]
[1743335746953,3.2078,1833.6,1833.5,42.9011]
[1743335747649,0.704,1834.0,1833.5,48.6089]
[1743335747841,0.704,1834.0,1833.6,1.3974]
[1743335747842,2.124,1834.0,1833.6,1.3974]
[1743335748043,3.2078,1834.1,1833.6,1.3974]
[1743335748248,1.42,1834.2,1833.8,3.2078]
[1743335748448,1.40518354,1834.2,1833.9,2.8373]
[1743335748754,1.40518354,1834.2,1834.0,1.3974]
[1743335752354,1.40518354,1834.2,1834.1,40.8]
[1743335760755,2.15768354,1834.2,1834.1,40.8]
[1743335760954,4.65768354,1834.2,1834.1,40.8]
[1743335761156,4.65768354,1834.2,1833.6,3.2078]
[1743335761355,8.1127,1834.1,1833.6,4.63948354]
[1743335761756,3.2078,1833.9,1833.6,1.4465]
[1743335761947,0.7474,1833.8,1833.6,1.4465]
[1743335762147,0.7474,1833.8,1833.7,40.8]
[1743335762755,1.458,1833.8,1833.7,40.8]
[1743335763767,4.987,1833.8,1833.7,40.8]
[1743335766766,8.1948,1833.8,1833.7,40.8]
[1743335768568,4.987,1833.8,1833.7,40.8]
[1743335768761,8.1948,1833.8,1833.7,40.8]
[1743335769861,4.6658,1833.8,1833.7,40.8]
[1743335770056,3.2078,1833.8,1833.7,40.8]
[1743335777263,3.21599426,1834.3,1833.7,46.5078]
[1743335777558,3.529,1834.6,1834.1,3.2078]
[1743335777761,3.529,1834.6,1834.2,2.7614]
[1743335777961,3.529,1834.6,1834.5,40.8]
[1743335778168,4.5822,1834.7,1834.5,40.8]
[1743335779168,3.8971,1834.7,1834.5,42.1654]
[1743335779370,3.8971,1834.7,1834.6,1.4938]
[1743335780072,3.8971,1834.7,1834.6,42.2938]
[1743335780668,5.3197,1834.7,1834.6,42.2938]
[1743335782672,2.1119,1834.7,1834.6,42.2938]
[1743335785172,2.1119,1834.7,1834.6,40.8]
[1743335787977,2.1119,1834.7,1834.6,42.1924]
[1743335793183,1.4226,1834.7,1834.6,42.1924]
[1743335794783,1.4226,1834.7,1834.6,40.8]
[1743335799490,4.6304,1834.7,1834.6,40.8]
[1743335799687,7.1304,1834.7,1834.4,0.00819426]
[1743335799893,3.2078,1834.5,1834.4,0.00819426]
[1743335800192,6.7348,1834.5,1834.4,0.00819426]
[1743335800390,10.6092,1834.5,1834.0,2.1494]
[1743335800593,3.2078,1834.1,1833.8,0.6853]
[1743335800779,1.4818,1834.0,1833.9,1.40408354]
[1743335801184,1.4818,1834.0,1833.9,40.8]
[1743335801386,2.1695,1834.0,1833.9,40.8]
[1743335803587,2.9236,1834.0,1833.9,40.8]
[1743335809289,6.1314,1834.0,1833.9,40.8]
[1743335810193,2.9236,1834.0,1833.9,40.8]
[1743335810495,6.1314,1834.0,1833.9,40.8]
[1743335813899,6.1314,1834.0,1833.9,42.1724]
[1743335814401,4.6896,1834.0,1833.9,42.1724]
[1743335814693,4.6896,1834.0,1833.9,42.8557]
[1743335816103,5.403,1834.0,1833.9,42.8557]
[1743335818505,5.403,1834.0,1833.9,40.8]
[1743335818695,6.1095,1834.0,1833.8,0.00819426]
[1743335818895,1.3642,1833.9,1833.8,0.00819426]
[1743335819701,1.3642,1833.9,1833.8,40.80819426]
[1743335820096,3.8642,1833.9,1832.7,0.5456]
[1743335820305,3.2078,1833.0,1832.9,2.1597]
[1743335821302,3.2078,1833.0,1832.9,42.9597]
[1743335821696,3.2078,1833.0,1832.9,43.7104]
[1743335822800,4.7097,1833.0,1832.9,40.8]
[1743335823001,5.4154,1833.0,1832.9,40.8]
[1743335823195,5.4154,1833.0,1832.9,43.0086]
[1743335825196,5.4154,1833.0,1832.9,40.8]
[1743335825809,5.4154,1833.0,1832.8,0.00819426]
[1743335826113,1.4313,1832.9,1832.8,0.00819426]
[1743335826809,1.4313,1832.9,1832.8,40.80819426]
[1743335828915,3.529,1832.9,1832.8,40.80819426]
[1743335830912,4.9706,1832.9,1832.8,40.80819426]
[1743335835512,8.1784,1832.9,1832.8,40.80819426]
[1743335837219,3.2078,1832.9,1832.8,40.80819426]
[1743335837420,5.6052,1832.9,1832.8,40.80819426]
[1743335838125,0.00819426,1833.1,1832.8,46.51599426]
[1743335838313,0.00819426,1833.1,1832.9,2.1696]
[1743335838520,0.00819426,1833.1,1833.0,1.4853]
[1743335838727,0.00819426,1833.1,1833.0,42.2853]
[1743335840618,0.00819426,1833.1,1833.0,42.9884]
[1743335843828,6.7368,1833.3,1833.0,42.9884]
[1743335844020,6.7368,1833.3,1833.0,2.1884]
[1743335844221,3.529,1833.3,1833.1,1.4235]
[1743335844420,3.529,1833.3,1833.2,40.8]
[1743335844825,6.7368,1833.3,1833.2,40.8]
[1743335845829,8.224,1833.3,1833.2,40.8]
[1743335853535,5.0162,1833.3,1833.2,40.8]
[1743335854041,8.224,1833.3,1833.2,40.8]
[1743335865043,5.0162,1833.3,1833.2,40.8]
[1743335865343,8.224,1833.3,1833.2,40.8]
[1743335866244,16.562,1833.3,1832.8,0.00819426]
[1743335866448,16.562,1833.3,1832.0,1.98696487]
[1743335866449,3.2078,1832.9,1832.1,1.3946]
[1743335866647,3.2078,1832.3,1832.1,1.3946]
[1743335866842,4.9475,1832.2,1832.1,1.3946]
[1743335867348,4.9475,1832.2,1832.1,42.1946]
[1743335870748,3.21599426,1832.3,1832.1,42.1946]
[1743335871046,3.21599426,1832.3,1832.2,2.1668]
[1743335871239,3.21599426,1832.3,1832.2,2.8942]
[1743335871643,3.21599426,1832.3,1832.2,43.6942]
[1743335873947,3.2078,1832.9,1832.2,49.402]
[1743335874251,3.2078,1832.9,1832.5,3.2078]
[1743335874448,3.2078,1832.9,1832.6,2.1821]
[1743335874844,3.568,1833.0,1832.7,1.436]
[1743335875154,0.00819426,1832.9,1832.7,1.436]
[1743335877053,0.00819426,1832.9,1832.8,0.7124]
[1743335877254,0.00819426,1832.9,1832.8,41.5124]
[1743335878246,0.00819426,1832.9,1832.8,42.9293]
[1743335882355,3.561,1833.2,1832.8,42.9293]
[1743335882558,3.561,1833.2,1832.8,2.1293]
[1743335882759,3.2078,1833.3,1832.9,1.4937]
[1743335882962,4.88709102,1833.2,1833.0,0.7101]
[1743335883157,4.88709102,1833.2,1833.1,1.4943]
[1743335883559,4.88709102,1833.2,1833.1,42.2943]
[1743335889564,4.88709102,1833.2,1833.1,40.8]
[1743335889762,5.59999102,1833.2,1833.1,40.8]
[1743335894264,5.59999102,1833.2,1833.1,42.2918]
[1743335894464,5.58999102,1833.2,1833.1,42.2918]
[1743335897867,8.79779102,1833.2,1833.1,42.2918]
[1743335900162,8.79079102,1833.2,1833.1,42.2918]
[1743335900358,5.24879102,1833.2,1833.1,42.2918]
[1743335900764,8.78979102,1833.2,1833.1,42.2918]
[1743335903163,5.58199102,1833.2,1833.1,42.2918]
[1743335905266,1.32809102,1833.2,1833.1,42.2918]
[1743335905571,6.75199426,1833.3,1833.1,43.0153]
[1743335905773,6.75199426,1833.3,1833.2,1.4531]
[1743335906164,6.75199426,1833.3,1833.2,42.2531]
[1743335911068,3.21599426,1833.3,1833.2,42.2531]
[1743335911263,3.53,1833.5,1833.2,42.2531]
[1743335911464,3.53,1833.5,1833.3,1.389]
[1743335911664,4.9722,1833.5,1833.4,1.4736]
[1743335911868,4.9722,1833.5,1833.4,42.2736]
[1743335928370,4.9702,1833.5,1833.4,42.2736]
[1743335930182,3.528,1833.5,1833.4,42.2736]
[1743335930782,0.00819426,1833.6,1833.4,42.2736]
[1743335930982,0.00819426,1833.6,1833.5,1.3709]
[1743335931379,0.00819426,1833.6,1833.5,42.1709]
[1743335932686,1.46099426,1833.6,1833.5,42.1709]
[1743335937781,0.00819426,1833.6,1833.5,42.1709]
[1743335938284,4.6207,1833.8,1833.5,42.1709]
[1743335938285,3.2078,1833.8,1833.5,42.1709]
[1743335938481,3.2078,1833.8,1833.5,1.3709]
[1743335938787,3.2078,1833.8,1833.6,1.3878]
[1743335938981,3.2078,1833.8,1833.7,42.2188]
[1743335942487,1.38629426,1833.9,1833.7,42.2188]
[1743335942683,1.38629426,1833.9,1833.8,1.4788]
[1743335943390,1.38629426,1833.9,1833.8,42.2788]
[1743335947984,1.38629426,1833.9,1833.8,40.8]
[1743335953196,1.38629426,1833.9,1833.5,1.4697]
[1743335953396,1.4732,1833.8,1833.5,1.4697]
[1743335953596,4.8981,1833.7,1833.5,1.4697]
[1743335953996,1.3711,1833.6,1833.5,1.4697]
[1743335954199,1.3711,1833.6,1833.5,42.2697]
[1743335964202,1.3711,1833.6,1832.9,0.5456]
[1743335964203,3.8711,1833.6,1833.0,3.21599426]
[1743335964407,3.2078,1833.3,1833.0,0.00819426]
[1743335964608,4.9625,1833.2,1833.0,0.00819426]
[1743335964905,6.4155,1833.2,1833.0,1.45919426]
[1743335965207,1.453,1833.1,1833.0,1.45919426]
[1743335965404,1.453,1833.1,1833.0,1.42778528]
[1743335965802,1.453,1833.1,1833.0,42.22778528]
[1743335974110,3.528,1833.2,1833.0,42.22778528]
[1743335974309,5.0289,1833.2,1833.1,1.4988]
[1743335974809,5.0289,1833.2,1833.1,42.2988]
[1743335977204,3.2078,1833.3,1833.1,42.2988]
[1743335977406,3.2078,1833.3,1833.2,0.6984]
[1743335977709,1.4812,1833.6,1833.2,1.4348]
[1743335977710,8.217,1833.6,1833.2,1.4348]
[1743335978113,6.7358,1833.6,1833.5,40.8]
[1743335984310,3.528,1833.6,1833.5,40.8]
[1743335984509,6.7358,1833.6,1833.5,40.8]
[1743335989416,3.528,1833.6,1833.5,40.8]
[1743335989624,6.7358,1833.6,1833.5,40.8]
[1743335989828,8.2438,1833.6,1833.5,40.8]
[1743335995518,4.7158,1833.6,1833.5,40.8]
[1743335995715,8.2428,1833.6,1833.5,40.8]
[1743335997231,4.7158,1833.6,1833.5,40.8]
[1743336000533,3.527,1833.7,1833.5,40.8]
[1743336000736,8.1853,1833.8,1833.6,2.2155]
[1743336001032,1.4505,1833.7,1833.6,0.7059]
[1743336001222,1.4505,1833.7,1833.6,41.5059]
[1743336002434,6.7348,1833.8,1833.6,41.5059]
[1743336002938,6.7348,1833.8,1833.7,0.6972]
[1743336003132,8.1148,1833.8,1833.7,0.6972]
[1743336003530,8.1148,1833.8,1833.7,41.4972]
[1743336004536,8.1148,1833.8,1833.7,40.8]
[1743336005139,8.1148,1833.8,1833.3,3.2078]
[1743336005339,2.1794,1833.7,1833.3,3.2078]
[1743336005540,1.4622,1833.6,1833.3,3.2078]
[1743336005841,3.527,1833.5,1833.2,1.4008]
[1743336006141,1.4622,1833.4,1833.2,1.4008]
[1743336006641,1.4622,1833.4,1833.3,40.8]
[1743336009942,0.7172,1833.7,1833.3,40.8]
[1743336010249,4.6194,1833.8,1833.3,40.8]
[1743336010447,8.1454,1833.8,1833.3,40.8]
[1743336011140,4.6194,1833.8,1833.3,40.8]
[1743336011548,4.6194,1833.8,1833.2,8.1346]
[1743336012139,4.6194,1833.8,1833.7,40.8]
[1743336017150,1.4116,1833.8,1833.7,40.8]
[1743336020147,3.21599426,1833.9,1833.7,40.8]
[1743336020352,0.00819426,1833.9,1833.8,1.3686]
[1743336020752,0.00819426,1833.9,1833.8,42.1686]
[1743336021353,6.7338,1834.3,1833.8,42.1686]
[1743336021655,6.7338,1834.3,1833.9,5.974]
[1743336021656,6.71898354,1834.3,1833.9,5.974]
[1743336021953,8.22388354,1834.3,1834.0,1.3686]
[1743336022152,1.5049,1834.2,1834.0,1.3686]
[1743336023652,3.63175849,1834.3,1834.0,1.3686]
[1743336023853,0.00819426,1834.3,1834.0,4.5764]
[1743336024053,0.00819426,1834.3,1834.1,1.4788]
[1743336024357,0.00819426,1834.3,1834.2,0.7318]
[1743336024954,0.00819426,1834.3,1834.2,41.5318]
[1743336029656,0.00819426,1834.3,1834.2,40.8]
[1743336030160,3.92829426,1834.3,1834.2,40.8]
[1743336030364,3.92829426,1834.3,1833.9,0.00819426]
[1743336030555,3.2078,1834.1,1833.9,0.00819426]
[1743336030754,1.5014,1834.0,1833.9,0.00819426]
[1743336030953,1.5014,1834.0,1833.7,1.4505778]
[1743336031351,1.5014,1834.0,1833.9,40.8]
[1743336032256,1.5014,1834.0,1833.6,3.2078]
[1743336032560,8.1786,1833.9,1833.6,3.2078]
[1743336032762,1.4793,1833.8,1833.6,3.2078]
[1743336033358,1.4793,1833.8,1833.7,40.8]
[1743336034458,1.4793,1833.8,1833.7,42.2499]
[1743336037160,3.2078,1833.9,1833.7,42.2499]
[1743336037465,3.2078,1833.9,1833.8,1.4409]
[1743336037652,3.2078,1833.9,1833.8,2.1643]
[1743336038160,3.2078,1833.9,1833.8,42.9643]
[1743336038356,1.4314,1834.0,1833.8,42.9643]
[1743336038558,1.4314,1834.0,1833.9,2.1421]
[1743336039158,1.4314,1834.0,1833.9,42.9421]
[1743336041367,0.00819426,1834.3,1833.9,42.9421]
[1743336041568,3.5183778,1834.3,1834.0,1.4735]
[1743336041874,2.8164,1834.4,1834.0,1.4735]
[1743336042171,1.4321,1834.3,1834.1,0.7062]
[1743336042466,1.4321,1834.3,1834.2,1.3938]
[1743336042974,0.00819426,1834.4,1834.2,1.3938]
[1743336043264,0.00819426,1834.4,1834.3,0.7434]
[1743336043773,0.00819426,1834.4,1834.3,2.1372]
[1743336043969,32.72873505,1835.0,1834.3,42.9372]
[1743336044169,32.72873505,1835.0,1834.5,3.2078]
[1743336044170,1.4321,1834.8,1834.5,3.2078]
[1743336044369,1.4321,1834.8,1834.6,2.1]
[1743336044571,1.4321,1834.8,1834.7,2.1372]
[1743336045170,4.6399,1834.8,1834.7,40.8]
[1743336045569,5.3812,1834.8,1834.7,40.8]
[1743336047375,8.9052,1834.8,1834.7,40.8]
[1743336050678,11.4052,1834.8,1834.7,40.8]
[1743336051874,8.9052,1834.8,1834.6,0.00819426]
[1743336052075,1.4182,1834.7,1834.6,0.00819426]
[1743336052881,1.4182,1834.7,1834.6,40.80819426]
[1743336056990,1.4182,1834.7,1834.1,1.4321]
[1743336056991,3.9182,1834.7,1834.1,1.4321]
[1743336057287,3.2078,1834.5,1834.1,2.9296]
[1743336057487,4.9765,1834.4,1834.1,2.9296]
[1743336057788,6.3423,1834.4,1834.3,40.8]
[1743336057990,4.9765,1834.4,1834.3,40.8]
[1743336066182,7.4765,1834.4,1834.3,40.8]
[1743336066396,7.4765,1834.4,1834.1,0.00819426]
[1743336066588,3.2078,1834.2,1834.1,0.00819426]
[1743336067390,3.2078,1834.2,1834.1,40.80819426]
[1743336072995,5.7078,1834.2,1833.7,2.1813]
[1743336073195,3.2078,1833.9,1833.7,3.58438354]
[1743336073407,6.4239,1833.8,1833.7,1.4179]
[1743336073702,6.4239,1833.8,1833.3,0.7455]
[1743336073897,3.2078,1833.6,1833.4,1.4179]
[1743336074097,5.0,1833.5,1833.4,1.42609426]
[1743336074500,5.0,1833.5,1833.4,42.22609426]
[1743336081102,5.0,1833.5,1833.4,40.80819426]
[1743336081302,8.2423,1833.5,1833.1,2.1328]
[1743336081506,3.2078,1833.2,1833.1,2.1328]
[1743336081706,6.7328,1833.2,1833.1,2.1328]
[1743336081907,6.7328,1833.2,1833.1,1.3999]
[1743336082213,6.7328,1833.2,1833.1,42.1999]
[1743336083416,6.7328,1833.2,1833.1,40.8]
[1743336083605,7.4463,1833.2,1833.1,40.8]
[1743336083805,7.4463,1833.2,1833.0,0.00819426]
[1743336084106,1.4488,1833.1,1833.0,0.00819426]
[1743336084807,1.4488,1833.1,1833.0,40.80819426]
[1743336088814,4.6566,1833.1,1833.0,40.80819426]
[1743336089811,6.7328,1833.1,1833.0,40.80819426]
[1743336090115,6.7328,1833.1,1833.0,42.20769426]
[1743336090312,6.7328,1833.1,1833.0,40.80819426]
[1743336092717,6.7328,1833.1,1832.8,1.4437]
[1743336092904,3.2078,1832.9,1832.8,1.4437]
[1743336093307,4.5955,1832.9,1832.8,1.4437]
[1743336093511,4.5955,1832.9,1832.6,0.7374]
[1743336093717,3.2078,1832.7,1832.6,2.1858]
[1743336093917,3.2078,1832.7,1832.6,2.19399426]
[1743336094117,4.7006,1832.7,1832.6,2.19399426]
[1743336094318,4.7006,1832.7,1832.6,42.99399426]
[1743336095319,4.7006,1832.7,1832.6,40.80819426]
[1743336095519,6.128,1832.7,1832.6,40.80819426]
[1743336096114,6.128,1832.7,1832.2,1.4484]
[1743336096319,3.2078,1832.5,1832.4,0.2175]
[1743336096521,6.7338,1832.5,1832.4,1.6252]
[1743336097122,6.7338,1832.5,1832.4,42.4252]
[1743336098026,6.7338,1832.5,1832.4,43.1071]
[1743336099114,6.7338,1832.5,1832.4,41.0175]
[1743336099821,6.7338,1832.5,1832.4,40.8]
[1743336100827,6.7338,1832.5,1832.4,42.2812]
[1743336102636,6.7338,1832.5,1832.4,42.9869]
[1743336103041,3.526,1832.5,1832.4,42.9869]
[1743336104335,6.7338,1832.5,1832.4,42.9869]
[1743336105140,3.526,1832.5,1832.4,42.9869]
[1743336105345,6.7338,1832.5,1832.4,42.9869]
[1743336113642,3.526,1832.5,1832.4,42.9869]
[1743336113843,6.7338,1832.5,1832.4,42.9869]
[1743336115142,3.526,1832.5,1832.4,42.9869]
[1743336115342,6.7338,1832.5,1832.4,42.9869]
[1743336115748,0.00819426,1832.6,1832.4,42.9869]
[1743336116043,3.53419426,1832.6,1832.5,1.4735]
[1743336116548,3.53419426,1832.6,1832.5,42.2735]
[1743336118040,4.91379426,1832.6,1832.5,42.2735]
[1743336118240,5.66079426,1832.6,1832.5,42.2735]
[1743336118636,6.34179426,1832.6,1832.5,42.2735]
[1743336120348,6.34179426,1832.6,1832.5,43.4678]
[1743336126244,6.34179426,1832.6,1832.5,41.9943]
[1743336128246,6.34179426,1832.6,1832.5,43.4607]
[1743336128247,0.00819426,1832.6,1832.5,43.4607]
[1743336129243,1.44659426,1832.6,1832.5,43.4607]
[1743336129745,0.00819426,1832.6,1832.5,43.4607]
[1743336129950,6.7338,1832.9,1832.5,45.9607]
[1743336130154,3.2078,1833.2,1832.5,2.8781]
[1743336130350,3.2078,1833.2,1832.6,1.4877]
[1743336130548,6.7338,1833.2,1833.1,40.8]
[1743336134056,6.7338,1833.2,1833.1,41.521]
[1743336135851,6.7338,1833.2,1833.1,40.8]
[1743336137356,6.7338,1833.2,1832.7,2.82]
[1743336137657,0.7522,1833.1,1832.7,2.82]
[1743336137856,0.6957,1833.0,1832.8,1.3841]
[1743336138057,3.525,1832.9,1832.8,1.3841]
[1743336138255,3.525,1832.9,1832.8,42.1841]
[1743336141154,3.525,1832.9,1832.8,43.378]
[1743336146461,3.525,1832.9,1832.8,41.9939]
[1743336146658,3.525,1832.9,1832.8,40.8]
[1743336148856,6.7328,1832.9,1832.8,40.8]
[1743336149858,8.231,1832.9,1832.6,1.3946]
[1743336150058,2.2374,1832.8,1832.6,1.3946]
[1743336150261,1.4982,1832.7,1832.4,4.6515]
[1743336150456,3.525,1832.6,1832.5,1.4979]
[1743336150858,3.525,1832.6,1832.5,42.2979]
[1743336152161,6.7328,1832.6,1832.5,40.8]
[1743336152360,7.4129,1832.6,1832.5,40.8]
[1743336152863,7.4129,1832.6,1832.3,0.00546284]
[1743336153060,2.0669,1832.5,1832.3,0.00546284]
[1743336153368,1.3795,1832.4,1832.3,0.00546284]
[1743336153765,1.3795,1832.4,1832.3,40.80546284]
[1743336154161,4.5873,1832.4,1832.3,40.80546284]
[1743336155768,7.0873,1832.4,1831.9,1.4755]
[1743336156063,3.2078,1832.1,1831.9,1.4755]
[1743336156268,4.9521,1832.0,1831.9,1.4755]
[1743336156767,4.9521,1832.0,1831.9,42.2755]
[1743336160472,4.9521,1832.0,1831.9,41.533]
[1743336161569,4.9521,1832.0,1831.9,42.2144]
[1743336161765,4.9521,1832.0,1831.9,43.6949]
[1743336162071,1.4271,1832.0,1831.9,43.6949]
[1743336162277,4.9531,1832.0,1831.9,43.6949]
[1743336168175,1.4271,1832.0,1831.9,43.6949]
[1743336168371,4.9531,1832.0,1831.9,43.6949]
[1743336174477,4.9531,1832.0,1831.9,41.533]
[1743336175484,4.9531,1832.0,1831.9,40.8]
[1743336176779,8.1609,1832.0,1831.9,40.8]
[1743336183592,4.9531,1832.0,1831.9,40.8]
[1743336183887,8.1609,1832.0,1831.9,40.8]
[1743336184192,8.1609,1832.0,1831.9,43.6277]
[1743336184393,8.1609,1832.0,1831.9,40.8]
[1743336187994,8.1609,1832.0,1831.8,0.00819426]
[1743336188195,2.844,1831.9,1831.8,0.00819426]
[1743336188996,2.844,1831.9,1831.8,40.80819426]
[1743336189395,5.344,1831.9,1831.3,0.7262]
[1743336189594,3.2078,1831.6,1831.3,2.9017]
[1743336189790,4.9561,1831.5,1831.3,2.9017]
[1743336190000,3.526,1831.5,1831.4,1.4339]
[1743336190294,3.526,1831.5,1831.4,42.2339]
[1743336204198,3.2078,1831.6,1831.4,42.2339]
[1743336204398,3.526,1831.6,1831.5,1.4508]
[1743336204596,3.2078,1831.8,1831.5,1.4508]
[1743336204796,3.526,1831.7,1831.6,1.4971]
[1743336205398,3.526,1831.7,1831.6,42.2971]
[1743336205900,6.7338,1831.8,1831.6,42.2971]
[1743336206100,6.7338,1831.8,1831.7,1.4249]
[1743336206797,6.7338,1831.8,1831.7,42.2249]
[1743336208602,3.2078,1832.0,1831.7,42.2249]
[1743336208806,3.2078,1832.0,1831.8,1.3893]
[1743336208994,3.2078,1832.0,1831.9,0.6966]
[1743336209200,3.2078,1832.0,1831.9,1.4462]
[1743336209804,3.2078,1832.0,1831.9,42.2462]
[1743336209994,4.5971,1832.0,1831.9,42.2462]
[1743336211607,5.3381,1832.0,1831.9,42.2462]
[1743336211808,5.3381,1832.0,1831.9,40.8]
[1743336221017,8.1221,1832.0,1831.9,40.8]
[1743336221216,8.1221,1832.0,1831.9,42.2386]
[1743336221406,4.5971,1832.0,1831.9,42.2386]
[1743336223418,4.5971,1832.0,1831.9,40.8]
[1743336224416,4.5971,1832.0,1831.7,0.2271]
[1743336224616,3.2078,1831.8,1831.7,0.2271]
[1743336224813,6.7328,1831.8,1831.7,0.2271]
[1743336225117,8.9517,1831.8,1831.7,0.2271]
[1743336225310,8.9517,1831.8,1831.7,41.0271]
[1743336225819,8.9517,1831.8,1831.7,40.8]
[1743336236033,8.9517,1831.8,1831.7,42.2572]
[1743336237232,4.6848,1831.8,1831.7,42.2572]
[1743336237431,8.2098,1831.8,1831.7,42.2572]
[1743336237631,4.6848,1831.8,1831.7,42.2572]
[1743336237831,8.2098,1831.8,1831.7,42.2572]
[1743336241327,5.002,1831.8,1831.7,42.2572]
[1743336241534,8.2098,1831.8,1831.7,42.2572]
[1743336242441,8.2098,1831.8,1831.7,40.8]
[1743336245740,8.2098,1831.8,1831.5,1.2498]
[1743336245938,3.2078,1831.6,1831.5,1.2498]
[1743336246335,4.6098,1831.6,1831.5,1.2498]
[1743336246535,4.6098,1831.6,1831.5,3.4338]
[1743336246742,4.6098,1831.6,1831.5,44.2338]
[1743336247344,4.6098,1831.6,1831.5,44.4609]
[1743336248743,5.3011,1831.6,1831.5,44.4609]
[1743336249638,2.0933,1831.6,1831.5,44.4609]
[1743336249847,5.3011,1831.6,1831.5,44.4609]
[1743336250637,2.0933,1831.6,1831.5,44.4609]
[1743336250843,5.3011,1831.6,1831.5,44.4609]
[1743336253241,4.6098,1831.6,1831.5,44.4609]
[1743336253441,4.6098,1831.6,1831.5,45.8649]
[1743336257037,4.6098,1831.6,1831.5,44.4609]
[1743336257446,4.6098,1831.6,1831.5,45.8992]
[1743336258945,4.6098,1831.6,1831.5,44.4609]
[1743336263450,1.402,1831.6,1831.5,44.4609]
[1743336263650,4.6098,1831.6,1831.5,44.4609]
[1743336264761,4.6098,1831.6,1831.5,44.0014]
[1743336264946,4.6098,1831.6,1831.5,43.2111]
[1743336267660,1.402,1831.6,1831.5,43.2111]
[1743336267847,4.6098,1831.6,1831.5,43.2111]
[1743336268361,4.6098,1831.6,1831.5,44.6473]
[1743336270358,4.6098,1831.6,1831.5,43.2111]
[1743336271153,4.6098,1831.6,1831.5,44.6665]
[1743336272261,4.6098,1831.6,1831.5,43.2111]
[1743336274457,4.6098,1831.6,1831.5,42.8437]
[1743336274860,4.6098,1831.6,1831.5,41.0271]
[1743336275162,4.6098,1831.6,1831.5,0.2271]
[1743336276065,4.6098,1831.6,1831.5,41.0271]
[1743336276264,4.6098,1831.6,1831.4,1.453]
[1743336276458,4.8845,1831.5,1831.4,1.453]
[1743336277362,4.8845,1831.5,1831.4,41.5543]
[1743336277757,4.8845,1831.5,1831.4,40.8]
[1743336278157,4.8845,1831.5,1831.1,1.3931]
[1743336278352,3.2078,1831.3,1831.1,1.3931]
[1743336279265,3.2078,1831.3,1831.2,40.8]
[1743336281064,3.2078,1831.3,1831.2,41.5036]
[1743336281465,1.3595,1831.4,1831.2,41.5036]
[1743336281660,3.2078,1831.3,1831.2,41.5036]
[1743336283261,3.2078,1831.3,1831.2,40.8]
[1743336283566,3.2078,1831.3,1830.6,0.7076]
[1743336283567,4.6248,1831.3,1830.6,0.7076]
[1743336283770,3.2078,1830.8,1830.6,0.7076]
[1743336283969,6.7318,1830.8,1830.6,0.7076]
[1743336284469,6.7318,1830.8,1830.7,40.8]
[1743336287566,7.16267638,1830.8,1830.7,40.8]
[1743336288265,6.7328,1830.8,1830.7,40.8]
[1743336288460,3.2078,1830.8,1830.7,40.8]
[1743336288665,6.7328,1830.8,1830.7,40.8]
[1743336288862,3.525,1830.8,1830.7,40.8]
[1743336292867,3.53319426,1831.1,1830.7,43.3]
[1743336293067,3.53319426,1831.1,1830.8,0.6921]
[1743336293474,3.53319426,1831.1,1831.0,40.8]
[1743336294176,0.00819426,1831.1,1831.0,40.8]
[1743336298077,1.45699426,1831.1,1831.0,40.8]
[1743336300073,2.81929426,1831.1,1831.0,40.8]
[1743336309481,2.81929426,1831.1,1830.5,2.177]
[1743336309684,3.2078,1830.7,1830.5,2.177]
[1743336309886,4.9098,1830.6,1830.5,2.177]
[1743336310089,4.9098,1830.6,1830.5,1.3879]
[1743336310488,4.9098,1830.6,1830.5,42.1879]
[1743336311794,3.2078,1830.7,1830.5,42.1879]
[1743336311997,3.525,1830.7,1830.6,1.4156]